[Event "*** SCC Grand Prix: Titled Tuesday Blitz"]
[Site "Chess.com"]
[Date "2020.08.11"]
[Round "1"]
[White "TudorAnton"]
[Black "Resignify"]
[Result "1-0"]
[WhiteElo "2568"]
[BlackElo "2207"]
[TimeControl "180+1"]
[EndTime "10:06:34 PDT"]
[Termination "TudorAnton won by resignation"]

1. d4 {[%clk 0:03:00.9]} 1... Nf6 {[%clk 0:03:00]} 2. c4 {[%clk 0:02:59.8]} 2...
d6 {[%clk 0:03:00.6]} 3. Nf3 {[%clk 0:02:51.7]} 3... Nbd7 {[%clk 0:02:56.6]} 4.
g3 {[%clk 0:02:47.5]} 4... e5 {[%clk 0:02:56]} 5. Bg2 {[%clk 0:02:44.3]} 5... g6
{[%clk 0:02:54]} 6. O-O {[%clk 0:02:43.4]} 6... Bg7 {[%clk 0:02:54]} 7. Nc3
{[%clk 0:02:32.3]} 7... O-O {[%clk 0:02:53.2]} 8. e4 {[%clk 0:02:29.8]} 8...
exd4 {[%clk 0:02:50.6]} 9. Nxd4 {[%clk 0:02:30.7]} 9... Re8 {[%clk 0:02:47.2]}
10. Re1 {[%clk 0:02:28.3]} 10... a6 {[%clk 0:02:37.5]} 11. h3 {[%clk 0:02:25]}
11... Ne5 {[%clk 0:02:33.5]} 12. b3 {[%clk 0:02:21.4]} 12... Rb8 {[%clk
0:02:16.4]} 13. f4 {[%clk 0:02:20.6]} 13... Nc6 {[%clk 0:02:14.4]} 14. Be3
{[%clk 0:02:18.4]} 14... Bd7 {[%clk 0:02:10.4]} 15. Rc1 {[%clk 0:02:16.7]} 15...
Nxd4 {[%clk 0:02:07.6]} 16. Bxd4 {[%clk 0:02:17.6]} 16... Bc6 {[%clk 0:01:53.7]}
17. Nd5 {[%clk 0:02:11.1]} 17... Nxd5 {[%clk 0:01:36]} 18. cxd5 {[%clk
0:02:10.2]} 18... Bd7 {[%clk 0:01:33.5]} 19. Bxg7 {[%clk 0:02:09.2]} 19... Kxg7
{[%clk 0:01:33.8]} 20. Qd4+ {[%clk 0:02:09.5]} 20... Qf6 {[%clk 0:01:33.8]} 21.
Qxf6+ {[%clk 0:02:07.8]} 21... Kxf6 {[%clk 0:01:34.7]} 22. Rxc7 {[%clk
0:02:07.5]} 22... Ke7 {[%clk 0:01:02.8]} 23. e5 {[%clk 0:01:49.3]} 23... Kd8
{[%clk 0:01:02]} 24. Rcc1 {[%clk 0:01:49.9]} 24... h5 {[%clk 0:00:55.4]} 25. Kf2
{[%clk 0:01:47.6]} 25... Bf5 {[%clk 0:00:52.8]} 26. exd6 {[%clk 0:01:44.5]}
26... Kd7 {[%clk 0:00:47.8]} 27. Rxe8 {[%clk 0:01:38.4]} 27... Kxe8 {[%clk
0:00:40.7]} 28. Rc7 {[%clk 0:01:39.3]} 28... Bd7 {[%clk 0:00:39.6]} 29. a4
{[%clk 0:01:32.7]} 29... Kd8 {[%clk 0:00:36.3]} 30. Ke3 {[%clk 0:01:31.9]} 30...
b5 {[%clk 0:00:29.4]} 31. a5 {[%clk 0:01:23.7]} 31... Rc8 {[%clk 0:00:22.2]} 32.
Rxc8+ {[%clk 0:01:22.1]} 32... Bxc8 {[%clk 0:00:16.7]} 33. Kd4 {[%clk 0:01:23]}
33... f6 {[%clk 0:00:10.7]} 34. Kc5 {[%clk 0:01:22.9]} 34... Kd7 {[%clk
0:00:11.2]} 35. Be4 {[%clk 0:01:20.6]} 35... g5 {[%clk 0:00:11.1]} 36. Bf5+
{[%clk 0:01:20.1]} 36... Kd8 {[%clk 0:00:11]} 37. Bxc8 {[%clk 0:01:20.5]} 37...
Kxc8 {[%clk 0:00:11.9]} 38. fxg5 {[%clk 0:01:19.9]} 38... fxg5 {[%clk
0:00:11.9]} 39. Kc6 {[%clk 0:01:19.9]} 39... Kd8 {[%clk 0:00:11.9]} 40. d7
{[%clk 0:01:20]} 40... b4 {[%clk 0:00:06.4]} 41. Kd6 {[%clk 0:01:14.8]} 41... g4
{[%clk 0:00:04.5]} 42. hxg4 {[%clk 0:01:14.1]} 42... hxg4 {[%clk 0:00:04.6]} 43.
Kc6 {[%clk 0:01:13.3]} 43... Ke7 {[%clk 0:00:04]} 44. Kc7 {[%clk 0:01:13.1]} 1-0

[Event "*** SCC Grand Prix: Titled Tuesday Blitz"]
[Site "Chess.com"]
[Date "2020.08.11"]
[Round "1"]
[White "PSvidler"]
[Black "grunbergmihai"]
[Result "1-0"]
[WhiteElo "2929"]
[BlackElo "2437"]
[TimeControl "180+1"]
[EndTime "10:06:38 PDT"]
[Termination "PSvidler won by resignation"]

1. e4 {[%clk 0:02:55.4]} 1... Nf6 {[%clk 0:02:59.7]} 2. e5 {[%clk 0:02:55.4]}
2... Nd5 {[%clk 0:02:59.9]} 3. d4 {[%clk 0:02:55.8]} 3... d6 {[%clk 0:03:00.1]}
4. Nf3 {[%clk 0:02:55.7]} 4... dxe5 {[%clk 0:03:00]} 5. Nxe5 {[%clk 0:02:55.6]}
5... c6 {[%clk 0:03:00]} 6. Bc4 {[%clk 0:02:55.4]} 6... Nd7 {[%clk 0:02:59]} 7.
Nf3 {[%clk 0:02:54.8]} 7... N7b6 {[%clk 0:02:57.4]} 8. Bd3 {[%clk 0:02:53.9]}
8... Bg4 {[%clk 0:02:56.5]} 9. O-O {[%clk 0:02:51]} 9... e6 {[%clk 0:02:55.7]}
10. c3 {[%clk 0:02:36.4]} 10... Be7 {[%clk 0:02:54.4]} 11. Nbd2 {[%clk
0:02:35.6]} 11... O-O {[%clk 0:02:53.4]} 12. Re1 {[%clk 0:02:35.5]} 12... c5
{[%clk 0:02:48.5]} 13. dxc5 {[%clk 0:02:30.8]} 13... Bxc5 {[%clk 0:02:48.1]} 14.
Ne4 {[%clk 0:02:28.5]} 14... Be7 {[%clk 0:02:45.2]} 15. Ng3 {[%clk 0:02:25.6]}
15... Qc7 {[%clk 0:02:36.2]} 16. h3 {[%clk 0:02:25]} 16... Bxf3 {[%clk
0:02:34.3]} 17. Qxf3 {[%clk 0:02:24.6]} 17... Rfd8 {[%clk 0:02:24.5]} 18. h4
{[%clk 0:01:48]} 18... Nd7 {[%clk 0:02:15.7]} 19. Bc2 {[%clk 0:01:43.1]} 19...
Nf8 {[%clk 0:02:04.6]} 20. h5 {[%clk 0:01:41]} 20... h6 {[%clk 0:01:51.5]} 21.
Be4 {[%clk 0:01:38]} 21... Nf6 {[%clk 0:01:49.9]} 22. Bxb7 {[%clk 0:01:34.8]}
22... Rab8 {[%clk 0:01:49.8]} 23. Ba6 {[%clk 0:01:34.7]} 23... Qa5 {[%clk
0:01:47.1]} 24. Bf1 {[%clk 0:01:33.7]} 24... Rd5 {[%clk 0:01:40.5]} 25. b4
{[%clk 0:01:32.5]} 25... Qd8 {[%clk 0:01:31.1]} 26. Bf4 {[%clk 0:01:25.1]} 26...
Rc8 {[%clk 0:01:28.3]} 27. c4 {[%clk 0:01:24]} 27... Rd4 {[%clk 0:01:17.8]} 28.
Be5 {[%clk 0:01:23.9]} 28... Rh4 {[%clk 0:01:05.4]} 29. Re3 {[%clk 0:01:24.8]}
29... Bxb4 {[%clk 0:01:01.7]} 30. Ree1 {[%clk 0:01:25.7]} 30... Bxe1 {[%clk
0:01:00.8]} 31. Rxe1 {[%clk 0:01:25.2]} 31... N8d7 {[%clk 0:00:56.3]} 32. Bd6
{[%clk 0:01:23.5]} 32... Qb6 {[%clk 0:00:55.2]} 33. Be7 {[%clk 0:01:21.4]} 33...
Qa5 {[%clk 0:00:50]} 34. Rd1 {[%clk 0:01:20.8]} 34... Qxa2 {[%clk 0:00:41.7]}
35. Rxd7 {[%clk 0:01:20.3]} 35... Nxd7 {[%clk 0:00:40.8]} 36. Bxh4 {[%clk
0:01:20.2]} 36... Ne5 {[%clk 0:00:39.4]} 37. Qb7 {[%clk 0:01:20]} 37... Re8
{[%clk 0:00:32.4]} 38. Ne4 {[%clk 0:01:19.9]} 38... Nxc4 {[%clk 0:00:30.2]} 39.
Qc6 {[%clk 0:01:19.6]} 39... Rb8 {[%clk 0:00:23.1]} 40. Bxc4 {[%clk 0:01:19.3]}
40... Qa1+ {[%clk 0:00:22]} 41. Kh2 {[%clk 0:01:19]} 41... Qe5+ {[%clk
0:00:21.5]} 42. Kh3 {[%clk 0:01:07.7]} 42... Qxh5 {[%clk 0:00:17.1]} 43. g4
{[%clk 0:01:07.5]} 43... Qe5 {[%clk 0:00:15]} 44. Bg3 {[%clk 0:01:07.3]} 44...
Qa1 {[%clk 0:00:14.6]} 45. Bxb8 {[%clk 0:01:07.2]} 1-0

[Event "*** SCC Grand Prix: Titled Tuesday Blitz"]
[Site "Chess.com"]
[Date "2020.08.11"]
[Round "1"]
[White "The_Chess_Coach"]
[Black "binbin239"]
[Result "0-1"]
[WhiteElo "2197"]
[BlackElo "2557"]
[TimeControl "180+1"]
[EndTime "10:06:38 PDT"]
[Termination "binbin239 won on time"]

1. d4 {[%clk 0:03:00]} 1... Nf6 {[%clk 0:02:57.9]} 2. c4 {[%clk 0:03:00.5]} 2...
g6 {[%clk 0:02:57.8]} 3. Nc3 {[%clk 0:03:00.9]} 3... d5 {[%clk 0:02:57.9]} 4.
cxd5 {[%clk 0:03:00.6]} 4... Nxd5 {[%clk 0:02:57.9]} 5. Bd2 {[%clk 0:03:01.3]}
5... Bg7 {[%clk 0:02:57.5]} 6. e4 {[%clk 0:03:01.5]} 6... Nxc3 {[%clk
0:02:57.3]} 7. Bxc3 {[%clk 0:03:01.7]} 7... c5 {[%clk 0:02:57.6]} 8. d5 {[%clk
0:03:02.1]} 8... Bxc3+ {[%clk 0:02:57.6]} 9. bxc3 {[%clk 0:03:03]} 9... O-O
{[%clk 0:02:57.8]} 10. Nf3 {[%clk 0:02:59.1]} 10... Bg4 {[%clk 0:02:56.9]} 11.
Qd2 {[%clk 0:02:57.8]} 11... e6 {[%clk 0:02:50.1]} 12. Bc4 {[%clk 0:02:55.4]}
12... exd5 {[%clk 0:02:49.1]} 13. Bxd5 {[%clk 0:02:55]} 13... Bxf3 {[%clk
0:02:43.1]} 14. gxf3 {[%clk 0:02:54.6]} 14... Nd7 {[%clk 0:02:36.7]} 15. h4
{[%clk 0:02:28.2]} 15... Ne5 {[%clk 0:02:29.9]} 16. Qe2 {[%clk 0:02:27.4]} 16...
Qf6 {[%clk 0:02:26.4]} 17. Rh3 {[%clk 0:02:16.8]} 17... c4 {[%clk 0:02:25.4]}
18. Kf1 {[%clk 0:02:07.7]} 18... Nd3 {[%clk 0:02:22]} 19. Qd2 {[%clk 0:01:55.6]}
19... Nf4 {[%clk 0:02:16.5]} 20. Rh2 {[%clk 0:01:44.9]} 20... Nxd5 {[%clk
0:02:15.1]} 21. exd5 {[%clk 0:01:05.8]} 21... Qxf3 {[%clk 0:02:03.4]} 22. h5
{[%clk 0:00:43.9]} 22... Rad8 {[%clk 0:02:02.1]} 23. Rd1 {[%clk 0:00:41]} 23...
Qf5 {[%clk 0:01:35]} 24. Qd4 {[%clk 0:00:37]} 24... Rd6 {[%clk 0:01:28.6]} 25.
h6 {[%clk 0:00:24.7]} 25... Qf6 {[%clk 0:01:19.3]} 26. Qxc4 {[%clk 0:00:24.7]}
26... Qe5 {[%clk 0:01:14.3]} 27. Kg1 {[%clk 0:00:19.3]} 27... Rfd8 {[%clk
0:01:10.2]} 28. f4 {[%clk 0:00:09.2]} 28... Qe3+ {[%clk 0:01:06.3]} 29. Rf2
{[%clk 0:00:09.2]} 29... Qg3+ {[%clk 0:01:05.6]} 30. Kf1 {[%clk 0:00:09.3]}
30... Qh3+ {[%clk 0:01:05.4]} 31. Ke2 {[%clk 0:00:08.8]} 31... Qxh6 {[%clk
0:01:05.8]} 32. Qe4 {[%clk 0:00:04.2]} 32... Qh5+ {[%clk 0:01:05.3]} 33. Rf3
{[%clk 0:00:01.4]} 33... Rxd5 {[%clk 0:00:59.7]} 34. Rxd5 {[%clk 0:00:01.2]}
34... Qxd5 {[%clk 0:01:00.2]} 0-1

[Event "*** SCC Grand Prix: Titled Tuesday Blitz"]
[Site "Chess.com"]
[Date "2020.08.11"]
[Round "1"]
[White "Agibileg"]
[Black "Aleksey_Sorokin"]
[Result "1/2-1/2"]
[WhiteElo "2408"]
[BlackElo "2795"]
[TimeControl "180+1"]
[EndTime "10:06:40 PDT"]
[Termination "Game drawn by agreement"]

1. d4 {[%clk 0:02:57.3]} 1... Nf6 {[%clk 0:02:59.4]} 2. c4 {[%clk 0:02:56.7]}
2... g6 {[%clk 0:02:59.5]} 3. Nc3 {[%clk 0:02:55]} 3... d5 {[%clk 0:02:59.5]} 4.
cxd5 {[%clk 0:02:52.2]} 4... Nxd5 {[%clk 0:03:00.4]} 5. e4 {[%clk 0:02:53.1]}
5... Nxc3 {[%clk 0:03:00.3]} 6. bxc3 {[%clk 0:02:54]} 6... Bg7 {[%clk
0:03:00.7]} 7. Nf3 {[%clk 0:02:36.8]} 7... c5 {[%clk 0:03:00.4]} 8. h3 {[%clk
0:02:31.9]} 8... O-O {[%clk 0:02:58.6]} 9. Be3 {[%clk 0:02:31.1]} 9... Qa5
{[%clk 0:02:57.2]} 10. Qd2 {[%clk 0:02:30.7]} 10... Nc6 {[%clk 0:02:53.1]} 11.
Rd1 {[%clk 0:02:27.7]} 11... Rd8 {[%clk 0:02:47.8]} 12. Bc4 {[%clk 0:02:26.7]}
12... b5 {[%clk 0:02:43.1]} 13. Bd5 {[%clk 0:02:23.9]} 13... Bb7 {[%clk
0:02:42.6]} 14. O-O {[%clk 0:02:22.5]} 14... e6 {[%clk 0:02:42.2]} 15. Bb3
{[%clk 0:02:18.8]} 15... cxd4 {[%clk 0:02:38.6]} 16. cxd4 {[%clk 0:02:19.7]}
16... Qxd2 {[%clk 0:02:38.8]} 17. Rxd2 {[%clk 0:02:19.8]} 17... Na5 {[%clk
0:02:38.9]} 18. Rfd1 {[%clk 0:02:18.5]} 18... Bxe4 {[%clk 0:02:35.5]} 19. Ne5
{[%clk 0:02:11.4]} 19... Nxb3 {[%clk 0:02:31.4]} 20. axb3 {[%clk 0:02:09.5]}
20... a5 {[%clk 0:02:30]} 21. Ra1 {[%clk 0:02:00.9]} 21... Bd5 {[%clk
0:02:25.5]} 22. Rb2 {[%clk 0:01:53.9]} 22... Bf8 {[%clk 0:02:15.4]} 23. Bd2
{[%clk 0:01:52.6]} 23... a4 {[%clk 0:02:14.8]} 24. bxa4 {[%clk 0:01:51.7]} 24...
bxa4 {[%clk 0:02:15.7]} 25. Bg5 {[%clk 0:01:48.3]} 25... a3 {[%clk 0:02:08.4]}
26. Rb6 {[%clk 0:01:38.1]} 26... Rdb8 {[%clk 0:01:54.8]} 27. Rxb8 {[%clk
0:01:36.7]} 27... Rxb8 {[%clk 0:01:55.7]} 28. Nd7 {[%clk 0:01:35.9]} 28... Rb7
{[%clk 0:01:31.9]} 29. Nxf8 {[%clk 0:01:35]} 29... a2 {[%clk 0:01:30.7]} 30. Kh2
{[%clk 0:01:20.6]} 30... Kxf8 {[%clk 0:01:22.5]} 31. Bd2 {[%clk 0:01:16.5]}
31... Ke8 {[%clk 0:01:19.4]} 32. Bc3 {[%clk 0:01:09.5]} 32... Rb3 {[%clk
0:01:16.4]} 33. Be1 {[%clk 0:01:05.3]} 33... Kd7 {[%clk 0:01:15.5]} 34. Rxa2
{[%clk 0:01:01.9]} 34... Rxh3+ {[%clk 0:01:12.5]} 35. Kxh3 {[%clk 0:00:59.7]}
35... Bxa2 {[%clk 0:01:13.4]} 36. Kg3 {[%clk 0:00:58.1]} 36... Kc6 {[%clk
0:01:12.5]} 37. Kf4 {[%clk 0:00:57.7]} 37... Kd5 {[%clk 0:01:12.5]} 38. Ke3
{[%clk 0:00:57.4]} 38... h5 {[%clk 0:01:09.7]} 39. f3 {[%clk 0:00:56.6]} 39...
g5 {[%clk 0:01:06.8]} 40. Ba5 {[%clk 0:00:55]} 40... Bc4 {[%clk 0:00:53.7]} 41.
Bd8 {[%clk 0:00:54.3]} 41... g4 {[%clk 0:00:53.8]} 42. fxg4 {[%clk 0:00:53.3]}
42... hxg4 {[%clk 0:00:54.7]} 43. g3 {[%clk 0:00:53.5]} 43... Bb3 {[%clk
0:00:45.7]} 44. Bc7 {[%clk 0:00:53.2]} 44... Kc4 {[%clk 0:00:44.9]} 45. Be5
{[%clk 0:00:52.2]} 45... Bd1 {[%clk 0:00:44.7]} 46. Bf6 {[%clk 0:00:51.6]} 46...
Bf3 {[%clk 0:00:44.6]} 47. Be5 {[%clk 0:00:51.3]} 47... Kd5 {[%clk 0:00:38.2]}
1/2-1/2

[Event "*** SCC Grand Prix: Titled Tuesday Blitz"]
[Site "Chess.com"]
[Date "2020.08.11"]
[Round "1"]
[White "Goryachkina"]
[Black "martynkovaelena"]
[Result "1-0"]
[WhiteElo "2583"]
[BlackElo "2223"]
[TimeControl "180+1"]
[EndTime "10:06:40 PDT"]
[Termination "Goryachkina won by checkmate"]

1. e4 {[%clk 0:02:59.8]} 1... c5 {[%clk 0:02:58.7]} 2. Nf3 {[%clk 0:02:59.7]}
2... e6 {[%clk 0:02:58.6]} 3. c3 {[%clk 0:02:59.2]} 3... d5 {[%clk 0:02:57]} 4.
exd5 {[%clk 0:02:59.2]} 4... exd5 {[%clk 0:02:57.2]} 5. d4 {[%clk 0:02:59.4]}
5... Nc6 {[%clk 0:02:56.7]} 6. Bb5 {[%clk 0:02:58.5]} 6... Bd6 {[%clk
0:02:56.5]} 7. O-O {[%clk 0:02:58.1]} 7... Ne7 {[%clk 0:02:56.3]} 8. dxc5 {[%clk
0:02:54]} 8... Bxc5 {[%clk 0:02:55.6]} 9. Nbd2 {[%clk 0:02:54.2]} 9... O-O
{[%clk 0:02:54.8]} 10. Nb3 {[%clk 0:02:54.3]} 10... Bd6 {[%clk 0:02:53.5]} 11.
Bg5 {[%clk 0:02:45.4]} 11... a6 {[%clk 0:02:46.2]} 12. Bd3 {[%clk 0:02:42]}
12... Qc7 {[%clk 0:02:36.1]} 13. h3 {[%clk 0:02:40.1]} 13... Be6 {[%clk
0:02:17.6]} 14. Nbd4 {[%clk 0:02:35.5]} 14... Nxd4 {[%clk 0:02:12.5]} 15. Nxd4
{[%clk 0:02:36.4]} 15... Bd7 {[%clk 0:01:46.3]} 16. Bxe7 {[%clk 0:02:15.5]}
16... Bxe7 {[%clk 0:01:45.5]} 17. Qh5 {[%clk 0:02:15]} 17... g6 {[%clk
0:01:39.2]} 18. Qxd5 {[%clk 0:02:12.8]} 18... Bf6 {[%clk 0:01:26.9]} 19. Qf3
{[%clk 0:01:42]} 19... Bg7 {[%clk 0:01:19.8]} 20. Be4 {[%clk 0:01:38.6]} 20...
Rab8 {[%clk 0:01:13.2]} 21. Rad1 {[%clk 0:01:36.5]} 21... Rfe8 {[%clk
0:00:55.1]} 22. Bd5 {[%clk 0:01:35.3]} 22... Be6 {[%clk 0:00:41.8]} 23. Nxe6
{[%clk 0:01:28.3]} 23... fxe6 {[%clk 0:00:42]} 24. Bb3 {[%clk 0:01:26.7]} 24...
Kh8 {[%clk 0:00:37.5]} 25. Qe4 {[%clk 0:01:22]} 25... Qe7 {[%clk 0:00:20]} 26.
Rfe1 {[%clk 0:01:18.3]} 26... e5 {[%clk 0:00:13.1]} 27. Rd5 {[%clk 0:01:17.4]}
27... b5 {[%clk 0:00:12]} 28. Red1 {[%clk 0:01:06.7]} 28... b4 {[%clk
0:00:11.3]} 29. Rd7 {[%clk 0:01:00.6]} 29... Qc5 {[%clk 0:00:10.9]} 30. Qh4
{[%clk 0:00:50.6]} 30... bxc3 {[%clk 0:00:07]} 31. Rxg7 {[%clk 0:00:42.4]} 31...
Kxg7 {[%clk 0:00:06.7]} 32. Rd7+ {[%clk 0:00:41.6]} 32... Kf8 {[%clk 0:00:05.8]}
33. Qf6# {[%clk 0:00:40.1]} 1-0

[Event "*** SCC Grand Prix: Titled Tuesday Blitz"]
[Site "Chess.com"]
[Date "2020.08.11"]
[Round "1"]
[White "paulrusan"]
[Black "viktorskliarov"]
[Result "0-1"]
[WhiteElo "2209"]
[BlackElo "2571"]
[TimeControl "180+1"]
[EndTime "10:06:40 PDT"]
[Termination "viktorskliarov won by resignation"]

1. e4 {[%clk 0:03:00.1]} 1... c5 {[%clk 0:02:57]} 2. b4 {[%clk 0:02:59.6]} 2...
b6 {[%clk 0:02:53.8]} 3. bxc5 {[%clk 0:02:59]} 3... bxc5 {[%clk 0:02:53.9]} 4.
Nc3 {[%clk 0:02:59.6]} 4... Nc6 {[%clk 0:02:53.7]} 5. Rb1 {[%clk 0:02:59.9]}
5... g6 {[%clk 0:02:48.7]} 6. Nf3 {[%clk 0:02:58.8]} 6... Bg7 {[%clk 0:02:48.7]}
7. Bb5 {[%clk 0:02:58.9]} 7... Bb7 {[%clk 0:02:47]} 8. Ba4 {[%clk 0:02:58.5]}
8... Rb8 {[%clk 0:02:45.4]} 9. O-O {[%clk 0:02:46]} 9... Nf6 {[%clk 0:02:44.9]}
10. e5 {[%clk 0:02:44.5]} 10... Ng4 {[%clk 0:02:44.4]} 11. Re1 {[%clk
0:02:39.3]} 11... O-O {[%clk 0:02:34.1]} 12. Ba3 {[%clk 0:02:38.7]} 12... Nb4
{[%clk 0:01:29.5]} 13. Bxb4 {[%clk 0:02:26.1]} 13... cxb4 {[%clk 0:01:29.2]} 14.
Rxb4 {[%clk 0:02:26.3]} 14... Bxf3 {[%clk 0:01:29.5]} 15. Rxb8 {[%clk
0:02:26.2]} 15... Bxd1 {[%clk 0:01:18.2]} 16. Rxd8 {[%clk 0:02:25.2]} 16... Rxd8
{[%clk 0:01:18.4]} 17. Rxd1 {[%clk 0:02:20.7]} 17... Bxe5 {[%clk 0:01:18.4]} 18.
h3 {[%clk 0:02:13.3]} 18... Bxc3 {[%clk 0:01:01.8]} 19. hxg4 {[%clk 0:02:11.5]}
19... Bd4 {[%clk 0:00:59.7]} 20. c3 {[%clk 0:02:08.2]} 20... Bb6 {[%clk
0:00:57.7]} 21. d4 {[%clk 0:02:07.9]} 21... d5 {[%clk 0:00:50.1]} 22. Bb3 {[%clk
0:01:44]} 22... e6 {[%clk 0:00:47.5]} 23. f4 {[%clk 0:01:06.9]} 23... Rc8 {[%clk
0:00:43.5]} 24. f5 {[%clk 0:01:07.2]} 24... Rxc3 {[%clk 0:00:35.5]} 25. fxe6
{[%clk 0:01:07.2]} 25... fxe6 {[%clk 0:00:36]} 26. Kf2 {[%clk 0:01:05.7]} 26...
Kf7 {[%clk 0:00:33.9]} 27. Ke2 {[%clk 0:01:00.8]} 27... Ke7 {[%clk 0:00:33.2]}
28. Rd3 {[%clk 0:01:00.8]} 28... Rc8 {[%clk 0:00:31.8]} 29. Rd1 {[%clk
0:00:51.3]} 29... Kd6 {[%clk 0:00:31]} 30. Kd3 {[%clk 0:00:40.4]} 30... Rf8
{[%clk 0:00:30.4]} 31. Kc3 {[%clk 0:00:24.7]} 31... Rf2 {[%clk 0:00:29.3]} 32.
Rd2 {[%clk 0:00:21.7]} 32... Ba5+ {[%clk 0:00:29.3]} 33. Kd3 {[%clk 0:00:20.3]}
33... Bxd2 {[%clk 0:00:30.2]} 0-1

[Event "*** SCC Grand Prix: Titled Tuesday Blitz"]
[Site "Chess.com"]
[Date "2020.08.11"]
[Round "1"]
[White "BulletMercenary"]
[Black "jlandaw"]
[Result "0-1"]
[WhiteElo "2152"]
[BlackElo "2519"]
[TimeControl "180+1"]
[EndTime "10:06:40 PDT"]
[Termination "jlandaw won by checkmate"]

1. e4 {[%clk 0:03:00.9]} 1... e5 {[%clk 0:02:58.4]} 2. Nf3 {[%clk 0:03:00.2]}
2... Nc6 {[%clk 0:02:50.9]} 3. d4 {[%clk 0:02:59.7]} 3... exd4 {[%clk
0:02:50.6]} 4. Nxd4 {[%clk 0:03:00]} 4... Nf6 {[%clk 0:02:50.3]} 5. Nc3 {[%clk
0:02:59.6]} 5... Bb4 {[%clk 0:02:49.8]} 6. Nxc6 {[%clk 0:02:59.8]} 6... bxc6
{[%clk 0:02:50.7]} 7. Bd3 {[%clk 0:03:00.1]} 7... d5 {[%clk 0:02:50.8]} 8. exd5
{[%clk 0:03:01]} 8... cxd5 {[%clk 0:02:51.6]} 9. O-O {[%clk 0:03:01.2]} 9... O-O
{[%clk 0:02:51.9]} 10. Bg5 {[%clk 0:03:01.7]} 10... c6 {[%clk 0:02:52.4]} 11.
Qf3 {[%clk 0:03:02.1]} 11... Be7 {[%clk 0:02:20.5]} 12. h3 {[%clk 0:03:01.7]}
12... h6 {[%clk 0:02:09.9]} 13. Bh4 {[%clk 0:03:01.2]} 13... Nd7 {[%clk
0:01:51]} 14. Bg3 {[%clk 0:02:39]} 14... Bf6 {[%clk 0:01:46.6]} 15. Rad1 {[%clk
0:02:18.5]} 15... Ne5 {[%clk 0:01:36.4]} 16. Qe3 {[%clk 0:01:53.8]} 16... d4
{[%clk 0:00:59.4]} 17. Qe4 {[%clk 0:01:48]} 17... Nxd3 {[%clk 0:00:58.6]} 18.
Rxd3 {[%clk 0:01:47.5]} 18... Ba6 {[%clk 0:00:51.5]} 19. Rfd1 {[%clk 0:01:21.3]}
19... Bxd3 {[%clk 0:00:51.2]} 20. Rxd3 {[%clk 0:01:22.2]} 20... Qa5 {[%clk
0:00:38.5]} 21. Nd1 {[%clk 0:01:07.9]} 21... Rfe8 {[%clk 0:00:38]} 22. Qxc6
{[%clk 0:01:07.1]} 22... Rac8 {[%clk 0:00:29.4]} 23. Qd7 {[%clk 0:01:00.8]}
23... Re1+ {[%clk 0:00:29]} 24. Kh2 {[%clk 0:01:00.8]} 24... Rxc2 {[%clk
0:00:29.5]} 25. b4 {[%clk 0:00:43.4]} 25... Qh5 {[%clk 0:00:23.8]} 26. Qa4
{[%clk 0:00:39.6]} 26... Rc1 {[%clk 0:00:17.2]} 27. f3 {[%clk 0:00:35.3]} 27...
Be5 {[%clk 0:00:12.4]} 28. f4 {[%clk 0:00:21.6]} 28... Bxf4 {[%clk 0:00:09.6]}
29. Bxf4 {[%clk 0:00:21.2]} 29... Rcxd1 {[%clk 0:00:10.3]} 30. Rg3 {[%clk
0:00:18.4]} 30... Rh1# {[%clk 0:00:10]} 0-1

[Event "*** SCC Grand Prix: Titled Tuesday Blitz"]
[Site "Chess.com"]
[Date "2020.08.11"]
[Round "1"]
[White "j2806"]
[Black "Eternauta2400"]
[Result "0-1"]
[WhiteElo "2074"]
[BlackElo "2497"]
[TimeControl "180+1"]
[EndTime "10:06:41 PDT"]
[Termination "Eternauta2400 won by resignation"]

1. e4 {[%clk 0:03:00.4]} 1... c5 {[%clk 0:02:58.5]} 2. Nf3 {[%clk 0:03:00.3]}
2... Nc6 {[%clk 0:02:56.5]} 3. d4 {[%clk 0:03:00.8]} 3... cxd4 {[%clk
0:02:57.4]} 4. Nxd4 {[%clk 0:03:01.1]} 4... Nf6 {[%clk 0:02:57.2]} 5. Nc3 {[%clk
0:02:59.3]} 5... e5 {[%clk 0:02:56.8]} 6. Ndb5 {[%clk 0:02:58.6]} 6... d6 {[%clk
0:02:56.4]} 7. Bg5 {[%clk 0:02:57.5]} 7... a6 {[%clk 0:02:56]} 8. Na3 {[%clk
0:02:57.6]} 8... b5 {[%clk 0:02:55.4]} 9. Nd5 {[%clk 0:02:58.1]} 9... Be7 {[%clk
0:02:55.4]} 10. Bxf6 {[%clk 0:02:56.9]} 10... Bxf6 {[%clk 0:02:56.3]} 11. c3
{[%clk 0:02:57.4]} 11... Bg5 {[%clk 0:02:55.9]} 12. Nc2 {[%clk 0:02:57.8]} 12...
Ne7 {[%clk 0:02:55.8]} 13. Nce3 {[%clk 0:02:56.2]} 13... O-O {[%clk 0:02:51.5]}
14. a4 {[%clk 0:02:55.5]} 14... bxa4 {[%clk 0:02:50.2]} 15. Rxa4 {[%clk
0:02:48.6]} 15... a5 {[%clk 0:02:49.4]} 16. Bc4 {[%clk 0:02:46.5]} 16... Be6
{[%clk 0:02:41.5]} 17. O-O {[%clk 0:02:41.2]} 17... Bxe3 {[%clk 0:02:40.4]} 18.
Nxe3 {[%clk 0:02:34.6]} 18... Rb8 {[%clk 0:02:37.8]} 19. b3 {[%clk 0:02:32.7]}
19... Kh8 {[%clk 0:02:21.7]} 20. Bxe6 {[%clk 0:02:17.6]} 20... fxe6 {[%clk
0:02:22.6]} 21. Nc4 {[%clk 0:02:17.5]} 21... d5 {[%clk 0:01:09.3]} 22. Nxe5
{[%clk 0:02:09.6]} 22... Qc7 {[%clk 0:01:09.1]} 23. Qd4 {[%clk 0:01:47.2]} 23...
Rxb3 {[%clk 0:01:05]} 24. exd5 {[%clk 0:01:32]} 24... exd5 {[%clk 0:00:59.3]}
25. Rc1 {[%clk 0:01:19]} 25... Rfb8 {[%clk 0:00:54.5]} 26. h3 {[%clk 0:01:10.1]}
26... Rb1 {[%clk 0:00:49.2]} 27. Rxb1 {[%clk 0:01:07.8]} 27... Rxb1+ {[%clk
0:00:50.1]} 28. Kh2 {[%clk 0:01:06.3]} 28... Nc6 {[%clk 0:00:47.4]} 29. Qd3
{[%clk 0:00:30]} 29... Nxe5 {[%clk 0:00:39]} 30. Qg3 {[%clk 0:00:29.4]} 30...
Rb2 {[%clk 0:00:32.8]} 31. Rd4 {[%clk 0:00:28.7]} 31... Nf3+ {[%clk 0:00:21.2]}
32. gxf3 {[%clk 0:00:26.4]} 32... Rxf2+ {[%clk 0:00:20.9]} 0-1